[Event "European Women-ch 2023"]
[Site "Petrovac"]
[Date "2023.03.21"]
[Round "4.6"]
[White "Richterova, Natasa"]
[Black "Walter, Ema"]
[Result "1-0"]
[ECO "C60"]
[WhiteElo "2190"]
[BlackElo "2048"]
[Annotator "TA"]
[PlyCount "187"]
[EventDate "2023.03.15"]
[EventType "swiss"]
[EventCountry "MNE"]
[SourceTitle "playchess.com"]
[Source "ChessBase"]
[SourceQuality "1"]
[TimeControl "40/5400+30:1800+30"]

{[%evp 9,187,25,35,20,27,21,19,21,29,30,32,12,29,18,27,13,48,17,51,41,35,27,28,31,27,28,35,25,44,42,68,75,65,33,87,40,65,22,36,16,20,16,54,34,44,35,44,55,51,47,28,25,52,0,0,8,33,0,0,0,58,17,18,7,25,7,24,9,6,9,11,7,25,0,0,0,0,0,24,9,27,22,48,37,32,0,90,90,84,33,73,78,203,164,154,135,132,138,135,117,195,162,182,168,180,141,183,124,164,169,155,159,153,149,171,175,201,201,203,203,203,201,201,201,204,196,176,190,213,165,239,175,167,175,218,185,362,213,466,408,433,429,544,539,439,387,567,620,639,618,1056,1042,5214,0,942,929,1933,1345,1688,275,825,705,712,654,430,54,2133,1833,29981,29978,29986,29987,29987,29988,29988,29989,29992,29993,29993,29994]} 1. e4 {[%emt 0:00:12]} e5 {[%emt 0:00:07]} 2. Nf3 {[%emt 0:00:03]} Nc6 {[%emt 0:00:05]} 3. Bb5 {[%emt 0:00:07]} Nge7 {[%emt 0:00:06]} 4. Nc3 {[%emt 0:00:45]} Ng6 {[%emt 0:00:05]} 5. d4 {[%emt 0:00:11]} exd4 {[%emt 0:00:03]} 6. Nxd4 {[%emt 0:00:05] C60: Ruy Lopez: Unusual Black 3rd moves and 3...g6.} Nxd4 {[%emt 0:00:04] outshines the older 6...Bc5.} 7. Qxd4 {[%emt 0:00:08][%cal Oh2h4]} c6 {[%emt 0:00:01]} 8. Be2 {[%emt 0:00:09] The position is equal.} Qb6 {[%emt 0:00:04]} 9. Qd3 {[%emt 0:00:38]} Be7 {[%emt 0:00:09]} 10. O-O {[%emt 0:00:21]} d6 {[%emt 0:00:04]} 11. a4 {[%emt 0:00:56][%cal Ba2a4,Ba4a5][%mdl 32]} O-O {[%emt 0:00:05]} 12. a5 {[%emt 0:00:14]} Qc7 {[%emt 0:00:04]} 13. f4 {[%emt 0:01:40]} Bd7 {[%emt 0:00:06]} 14. Be3 {[%emt 0:01:07] [#]} b5 $146 {[%emt 0:03:36]} ({Predecessor:} 14... Rfe8 15. g3 b5 16. Bf3 Rab8 17. Ne2 b4 18. Rfd1 c5 19. e5 Bb5 20. exd6 Bxd6 21. Qxd6 Qxd6 22. Rxd6 Rxe3 {½-½ Ganguly,S (2608)-Pechac,J (2594) Olympiad-44 Chennai 2022 (10.1)}) 15. axb6 {[%emt 0:05:27]} axb6 {[%emt 0:00:06]} 16. g3 {[%emt 0:00:21]} b5 {[%emt 0:11:38]} 17. Bf3 {[%emt 0:16:55]} Rfd8 {[%emt 0:27:20]} 18. Ne2 {[%emt 0:13:46]} Be6 {[%emt 0:11:55]} 19. b3 {[%emt 0:04:15]} Bf6 {[%emt 0:03:32]} 20. Rxa8 {[%emt 0:06:43]} Rxa8 {[%emt 0:00:13]} 21. Nd4 {[%emt 0:00:14]} Bd7 {[%emt 0:07:31]} ({Black should play} 21... Bh3 $14) 22. Rd1 {[%emt 0:18:00]} (22. Nxb5 $16 cxb5 23. e5) 22... Rd8 {[%emt 0:02:58][%cal Og6e5]} 23. Qe2 {[%emt 0:12:56]} Nf8 {[%emt 0:04:15]} 24. Qf2 {[%emt 0:03:58]} Re8 {[%emt 0:05:19]} 25. Qd2 {[%emt 0:05:32]} Rd8 {[%emt 0:03:03]} 26. Bf2 {[%emt 0:00:09]} g6 {[%emt 0:02:08]} 27. Ne2 {[%emt 0:04:58]} Bc8 {[%emt 0:00:33]} 28. Bd4 {[%emt 0:02:05]} Bxd4+ {[%emt 0:05:27]} 29. Qxd4 {[%emt 0:00:38]} Bb7 {[%emt 0:00:29]} 30. Qf6 {[%emt 0:00:52]} h6 {[%emt 0:04:10]} 31. Kg2 {[%emt 0:01:29]} Nh7 {[%emt 0:02:28]} 32. Qd4 {[%emt 0:00:00]} Nf8 {[%emt 0:00:26]} (32... c5 $5 {[%cal Rc5d4]} 33. Qd3 Nf6 $14) 33. Qf6 {[%emt 0:00:08]} Nh7 {[%emt 0:00:05]} 34. Qd4 {[%emt 0:00:02]} (34. Qc3 $11) 34... Nf8 $14 {[%emt 0:00:05]} 35. f5 {[%emt 0:00:58]} c5 {[%emt 0:03:00]} 36. Qd2 {[%emt 0:00:43]} gxf5 {[%emt 0:01:54]} 37. exf5 {[%emt 0:00:36]} ({Of course not} 37. Qxh6 fxe4 38. Bh5 e3+ 39. Bf3 Bxf3+ 40. Kxf3 Re8 41. Qxd6 Qc8 $11) 37... Re8 {[%emt 0:00:24]} 38. Nf4 {[%emt 0:00:39]} Bxf3+ {[%emt 0:00:54]} 39. Kxf3 {[%emt 0:00:01]} Qe7 {[%emt 0:00:44]} 40. Kf2 {[%emt 0:00:00][%cal Od2e2] Active counter play!} Qg5 {[%emt 0:00:00]} 41. Qd3 {[%emt 0:05:40]} (41. Qxd6 {with more complications.} Qxf5 42. Qd3 Qe5 43. Qe2) 41... Re5 {[%emt 0:07:05][%cal Be8e5,Be5f5,Bf5f6][%mdl 32]} 42. Kg2 {[%emt 0:09:10]} Rxf5 {[%emt 0:05:51]} 43. Qxd6 {[%emt 0:00:36]} Rf6 {[%emt 0:11:58]} 44. Qd5 {[%emt 0:02:19]} Qg4 {[%emt 0:01:58]} (44... Rf5 $5 {[%cal Rf5d5]} 45. Qd8 Kg7 $11) 45. h3 {[%emt 0:01:00]} Qc8 {[%emt 0:01:10]} 46. Qe5 {[%emt 0:04:01]} Qc6+ {[%emt 0:01:42]} 47. Qd5 {[%emt 0:02:21]} Qe8 {[%emt 0:00:11]} (47... Qc8 $1 $11) 48. Rd2 $16 {[%emt 0:03:08]} (48. Qxc5 $2 {perishes.} Rxf4 49. gxf4 Qe2+ 50. Qf2 Qxd1 $19) 48... Qc8 {[%emt 0:02:58]} 49. Qe5 {[%emt 0:01:50]} (49. h4 $16) 49... Rf5 {[%emt 0:00:50]} 50. Qe4 $36 {[%emt 0:01:24][%mdl 2048] Keeping Black busy.} Rf6 {[%emt 0:00:49]} (50... Ng6 $16 {was called for.}) 51. Nd5 {[%emt 0:01:38]} Re6 {[%emt 0:01:45]} 52. Ne7+ {[%emt 0:00:21]} Kh8 {[%emt 0:00:21]} 53. Nxc8 {[%emt 0:00:19]} Rxe4 {[%emt 0:00:05][%mdl 4096] Endgame KRN-KRN} 54. Nd6 {[%emt 0:00:10][%csl LRb5,LRe4,LRf7]} Re3 {[%emt 0:02:13]} (54... Re1 $16 55. Nxf7+ (55. Nxb5 Kg7 $16) 55... Kh7) 55. Nxb5 {[%emt 0:00:29]} Kg7 {[%emt 0:00:47]} 56. Kf2 {[%emt 0:00:07] Against Re1} Re5 {[%emt 0:00:22]} 57. Nc7 {[%emt 0:01:29]} Re7 {[%emt 0:01:20]} 58. Na6 {[%emt 0:02:24]} ({Better is} 58. Nd5 $18 Rd7 59. Ke3) 58... Ne6 {[%emt 0:00:08]} 59. Rd5 {[%emt 0:00:10]} Nd4 {[%emt 0:00:16]} 60. Rxc5 {[%emt 0:00:44]} Re2+ {[%emt 0:00:09]} 61. Kf1 {[%emt 0:00:12]} Rh2 {[%emt 0:00:45]} 62. Nb4 {[%emt 0:00:57]} Nf3 {[%emt 0:00:27]} 63. Rf5 {[%emt 0:00:44]} Nd4 {[%emt 0:01:14]} 64. Rf2 {[%emt 0:00:23]} Rxh3 {[%emt 0:00:00]} 65. Kg2 {[%emt 0:00:11]} Rh5 {[%emt 0:00:00]} 66. Rd2 {[%emt 0:00:13]} Nf5 {[%emt 0:00:27]} 67. Rd3 {[%emt 0:00:32]} Rg5 {[%emt 0:00:30]} 68. c4 {[%emt 0:00:23]} h5 {[%emt 0:00:06]} 69. Kf2 {[%emt 0:01:04]} Nh6 {[%emt 0:00:51]} (69... Kf6 $142 70. c5 Rg8 71. Nd5+ Ke5) 70. Nd5 {[%emt 0:01:15]} Ng4+ {[%emt 0:00:23]} 71. Ke2 {[%emt 0:00:07]} Rf5 {[%emt 0:01:00]} 72. Rf3 {[%emt 0:00:30]} Re5+ $2 {[%emt 0:00:15]} (72... Rg5 73. Rd3 Ne5) 73. Kd2 {[%emt 0:00:11]} (73. Kd3 $142) 73... f5 $2 {[%emt 0:01:38]} (73... Rg5 {keeps fighting.} 74. Nf4 Ne5) 74. Ne3 {[%emt 0:02:33]} Nh6 {[%emt 0:00:04]} 75. b4 {[%emt 0:00:17][%cal Bb3b4,Bb4b5][%mdl 32]} Kf7 {[%emt 0:00:31]} 76. b5 {[%emt 0:00:21]} Ke6 {[%emt 0:00:30]} 77. Kc3 {[%emt 0:00:32]} Kd6 {[%emt 0:01:21]} (77... Nf7 $142) 78. Kb4 $18 {[%emt 0:00:15]} Kc7 {[%emt 0:00:30]} 79. Nd5+ {[%emt 0:00:47]} Kb7 {[%emt 0:00:29]} 80. Re3 {[%emt 0:00:38]} Re4 {[%emt 0:00:35]} 81. Rf3 $2 {[%emt 0:00:40]} (81. Rxe4 $18 {Threatening mate with Re8.} fxe4 82. c5) 81... h4 $2 {[%emt 0:00:43][%mdl 8192]} (81... Re5 $11 82. Rf1 Ng4) 82. gxh4 {[%emt 0:00:05]} Rxh4 {[%emt 0:00:07]} 83. Kc5 {[%emt 0:00:27] [#] Threatens to win with Re3.} Re4 {[%emt 0:00:28]} 84. Nf6 $2 {[%emt 0:01:07]} (84. Rh3 Ng4 85. Rh7+ Kb8 86. Nb4) 84... Re5+ $2 {[%emt 0:00:36]} (84... Re6 85. Nd5 Re8) 85. Kb4 {[%emt 0:00:33] Black must now prevent Rh3.} Re6 {[%emt 0:01:08]} 86. Nd5 {[%emt 0:00:33]} Re4 {[%emt 0:00:44]} 87. Ne3 $2 {[%emt 0:00:14]} (87. Rh3 $18 Ng4 88. Rh7+ Kb8 89. Nc7) 87... Re5 $2 {[%emt 0:00:27][%mdl 8192]} (87... Nf7 $14) 88. c5 {[%emt 0:00:09][%cal Bc4c5,Bc5c6,Bc6c7][%mdl 32] [#] Nc4 would kill now.} f4 {[%emt 0:00:35]} 89. Nc4 {[%emt 0:00:20] White mates.} Re4 {[%emt 0:00:30]} 90. c6+ {[%emt 0:00:02]} Kc8 {[%emt 0:00:35]} 91. b6 {[%emt 0:00:18]} Nf5 {[%emt 0:00:38]} 92. Ra3 {[%emt 0:01:19][%cal Ra3a8]} Kb8 {[%emt 0:00:04]} 93. c7+ {[%emt 0:00:25]} Kb7 {[%emt 0:00:03]} 94. Ra7+ {[%emt 0:00:06] Weighted Error Value: White=0.13 (very precise) /Black=0.18 (very precise)} 1-0

[Event "European Women-ch 2023"]
[Site "Petrovac"]
[Date "2023.03.21"]
[Round "4.7"]
[White "Socko, Monika"]
[Black "Bivol, Alina"]
[Result "1-0"]
[ECO "C56"]
[WhiteElo "2432"]
[BlackElo "2365"]
[Annotator "TA"]
[PlyCount "75"]
[EventDate "2023.03.15"]
[EventType "swiss"]
[EventCountry "MNE"]
[SourceTitle "playchess.com"]
[Source "ChessBase"]
[SourceQuality "1"]
[TimeControl "40/5400+30:1800+30"]

{[%evp 9,75,23,31,32,31,29,52,52,51,26,47,24,38,29,30,27,71,60,84,57,57,0,62,48,63,87,83,87,70,88,151,153,163,159,249,230,315,306,278,269,329,332,452,465,462,446,430,369,366,370,727,727,704,696,891,885,29987,1124,1168,1139,2113,2072,1839,1777,2701,1916,3065,2863]} 1. e4 {[%emt 0:00:03]} e5 {[%emt 0:00:16]} 2. Nf3 {[%emt 0:00:05]} Nc6 {[%emt 0:00:12]} 3. Bc4 {[%emt 0:00:10]} d6 {[%emt 0:00:06]} 4. d4 {[%emt 0:04:14]} Nf6 {[%emt 0:00:35]} 5. d5 {[%emt 0:03:50]} Ne7 {[%emt 0:00:26]} 6. Bd3 {[%emt 0:00:04] C56: Two Knights: 4 d4 exd4 5 0-0 Nxe4.} g6 {[%emt 0:00:21]} 7. c4 {[%emt 0:01:02]} Bg7 {[%emt 0:00:22]} 8. Nc3 {[%emt 0:00:04] White is slightly better.} O-O {[%emt 0:02:36]} 9. h3 {[%emt 0:00:08]} Nd7 {[%emt 0:02:51]} 10. g4 {[%emt 0:15:35] [#]} c6 $146 {[%emt 0:07:36]} ({Predecessor:} 10... Nc5 11. Bc2 a5 12. Be3 b6 13. Qe2 a4 14. O-O-O Bd7 15. Rdg1 c6 16. h4 cxd5 17. Bxc5 bxc5 18. Nxd5 Nxd5 19. cxd5 {0-1 Zemerov,V (2268)-Khodzhamkuliev,B (2167) Titled Tuesday intern op 03rd Aug blitz 2021 (9)}) 11. Be3 {[%emt 0:05:53]} cxd5 {[%emt 0:16:40]} 12. cxd5 {[%emt 0:00:32]} f5 {[%emt 0:02:17]} 13. gxf5 {[%emt 0:04:10]} gxf5 {[%emt 0:00:05]} 14. Ng5 $1 {[%emt 0:01:21]} (14. Rg1 $6 f4 15. Bd2 Rf6 $11) 14... Nf6 {[%emt 0:01:45]} 15. Qb3 {[%emt 0:05:47]} ({White should try} 15. f3 $14) 15... fxe4 {[%emt 0:11:41]} (15... h6 $1 $11 16. Ne6 Bxe6 17. dxe6 fxe4 18. Nxe4 d5 19. Nxf6+ Rxf6) 16. Ncxe4 $14 {[%emt 0:03:54]} Nxe4 {[%emt 0:03:17]} (16... Nfxd5 $2 17. Bc4 Kh8 18. Bxd5 $18) 17. Bxe4 {[%emt 0:00:43] White stays focused until the end.} h6 {[%emt 0:00:52]} 18. Ne6 {[%emt 0:01:58]} Bxe6 {[%emt 0:00:36]} 19. dxe6 {[%emt 0:00:04] aiming for Rg1.} d5 {[%emt 0:08:40] [#]} (19... Qa5+ $142 20. Bd2 Qb6 21. Qxb6 (21. Bxb7 Qxf2+ 22. Kd1 Rae8 $15) 21... axb6) 20. O-O-O $1 $16 {[%emt 0:08:17][%cal Re4d5] White has more active pieces.} d4 {[%emt 0:07:05] [#]} 21. Bd2 $1 {[%emt 0:07:54] Strongly threatening Rhg1. Black is weak on the light squares} Rf6 {[%emt 0:04:55]} (21... Qb6 $16) 22. Rhg1 {[%emt 0:01:04]} (22. Bxb7 $2 {loses.} Qc7+ 23. Kb1 Rb8 $19) (22. Qxb7 $6 Qc8+ 23. Qxc8+ (23. Kb1 Qxb7 24. Bxb7 Rb8 $16) 23... Rxc8+ 24. Kb1 Rxe6 $16) 22... Qc8+ {[%emt 0:03:17]} 23. Kb1 {[%emt 0:01:02]} Qxe6 {[%emt 0:01:02]} 24. Qxb7 {[%emt 0:01:50]} ({Worse is} 24. Bxb7 Qxb3 25. axb3 Rb8 $11) 24... Re8 {[%emt 0:03:09]} 25. f3 {[%emt 0:07:14]} ({Not} 25. Qxa7 Rxf2 26. Bb4 Kh8 $16) 25... a6 {[%emt 0:05:36]} 26. Rc1 {[%emt 0:01:49][%cal Oc1c6,Bd1c1,Bc1c7,Bc7c6,Bc6a6,Ba6a7][%mdl 32] Dodges Qc8. Black must now prevent Rc6!} Kh8 {[%emt 0:03:48]} 27. Rc7 {[%emt 0:03:10]} Bf8 {[%emt 0:00:34] [#]} 28. Rc6 $3 {[%emt 0:09:06][%mdl 576] Wards off Qb6. Double Attack} Qf7 {[%emt 0:08:35]} 29. Rxa6 {[%emt 0:00:06]} Bg7 {[%emt 0:03:39]} (29... Rxa6 30. Qxa6 Ng8) 30. Ra7 $18 {[%emt 0:00:53]} Qe6 {[%emt 0:00:29]} 31. Bb4 {[%emt 0:03:14][%cal Rb4e7]} Bf8 {[%emt 0:00:24]} 32. a4 {[%emt 0:02:18][%cal Ba2a4,Ba4a5,Ba5a6][%mdl 32]} Qxh3 {[%emt 0:00:31]} 33. Qb5 {[%emt 0:00:54]} (33. Ra8 $142 Qh2 34. Rc1 Rf7 35. Rxe8 Kg7 36. Bxe7 Rxe7 {[%mdl 64] Remove Defender} 37. Rxe7+ Kf6 38. Qd7) 33... Qh5 {[%emt 0:00:47] White is clearly winning.} 34. a5 {[%emt 0:00:31]} Nf5 {[%emt 0:00:43] [#]} 35. Qd7 $1 {[%emt 0:01:17][%csl Ga7][%cal Rd7h7]} Ne7 {[%emt 0:00:29]} 36. Rb7 {[%emt 0:02:10]} Qf7 {[%emt 0:00:26]} 37. Bd6 {[%emt 0:00:51] A strong pair of Bishops.} Re6 {[%emt 0:00:14]} 38. a6 {[%emt 0:00:19] Beautiful play by Socko!   Weighted Error Value: White=0.06 (flawless) /Black=0.52} 1-0

[Event "European Women-ch 2023"]
[Site "Petrovac"]
[Date "2023.03.21"]
[Round "4.7"]
[White "Abdulla, Khayala"]
[Black "Gaponenko, Inna"]
[Result "0-1"]
[ECO "B36"]
[WhiteElo "2221"]
[BlackElo "2349"]
[Annotator "TA"]
[PlyCount "107"]
[EventDate "2023.03.15"]
[EventType "swiss"]
[EventCountry "MNE"]
[SourceTitle "playchess.com"]
[Source "ChessBase"]
[SourceQuality "1"]
[TimeControl "40/5400+30:1800+30"]

{[%evp 21,107,35,30,22,36,37,36,24,22,26,26,0,0,0,0,0,0,-24,-16,-29,-27,-22,-25,-14,-21,-29,-28,-22,-12,-12,0,0,0,-9,-10,-10,-10,-27,-27,-27,-27,-33,-35,-46,-46,-45,0,0,0,0,0,0,0,-6,0,0,0,0,0,0,0,-34,-24,-79,-44,-44,-44,-69,-57,-69,-69,-83,-52,-152,-125,-131,-127,-166,-168,-175,-175,-29961,-29956,-29971,-29972,-29981,-29982,-29964]} 1. e4 {[%emt 0:00:08]} c5 {[%emt 0:00:11]} 2. Nf3 {[%emt 0:00:14]} Nc6 {[%emt 0:00:08]} 3. d4 {[%emt 0:00:11]} cxd4 {[%emt 0:00:06]} 4. Nxd4 {[%emt 0:00:03]} g6 {[%emt 0:00:12]} 5. c4 {[%emt 0:01:24]} Nf6 {[%emt 0:00:11]} 6. Nc3 {[%emt 0:00:13]} d6 {[%emt 0:01:31]} 7. Be2 {[%emt 0:02:03]} Nxd4 {[%emt 0:00:08]} 8. Qxd4 {[%emt 0:00:07]} Bg7 {[%emt 0:00:05]} 9. Bg5 {[%emt 0:02:24]} O-O {[%emt 0:10:14]} 10. Qe3 {[%emt 0:01:18]} Be6 {[%emt 0:17:06]} 11. O-O {[%emt 0:04:01]} Qb6 {[%emt 0:06:23]} 12. Qd2 {[%emt 0:17:13] B36: Sicilian: Maroczy Bind: Gurgenidze System.} Rfc8 {[%emt 0:17:21]} 13. b3 {[%emt 0:03:10]} a6 {[%emt 0:00:25] [#]} 14. Rfc1 $146 {[%emt 0:03:15] White is slightly better.} ({Predecessor:} 14. Rac1 Qb4 15. f4 b5 16. f5 Bd7 17. fxg6 hxg6 18. e5 Qc5+ 19. Kh1 Qxe5 20. Bf3 {1-0 Bu,X (2723)-Zvjaginsev,V (2672) RUS-chT 23rd 2016 (6.4)}) 14... Rab8 {[%emt 0:07:33]} 15. Be3 {[%emt 0:12:43]} Qa5 {[%emt 0:03:52]} 16. a3 {[%emt 0:01:25]} b5 {[%emt 0:01:40][%cal Rb5c4]} 17. b4 {[%emt 0:00:47]} Qd8 {[%emt 0:00:06]} 18. e5 {[%emt 0:11:46]} Ng4 {[%emt 0:06:43] [#] Hoping for ...Nxe3.} 19. Bxg4 {[%emt 0:01:53]} Bxg4 {[%emt 0:02:24]} 20. cxb5 {[%emt 0:00:39]} axb5 {[%emt 0:00:24]} 21. exd6 $1 {[%emt 0:10:55]} Qxd6 {[%emt 0:00:19]} ({Resist} 21... exd6 22. Bg5 Bxc3 23. Rxc3 $16) 22. Qxd6 {[%emt 0:01:51]} exd6 {[%emt 0:00:01]} 23. Nd5 {[%emt 0:00:56]} Bxa1 {[%emt 0:23:33] This pair of bishops is nice.} 24. Ne7+ {[%emt 0:00:15]} Kf8 {[%emt 0:01:03] aiming for ...Rxc1+.} 25. Nxc8 {[%emt 0:00:13]} Rxc8 {[%emt 0:00:42]} 26. Rxa1 $11 {[%emt 0:00:07][%mdl 4096] Endgame KRB-KRB} Ke7 {[%emt 0:00:12]} 27. a4 {[%emt 0:05:22]} bxa4 {[%emt 0:00:04]} 28. Rxa4 {[%emt 0:00:13]} Rc4 {[%emt 0:00:08]} 29. Ra7+ {[%emt 0:00:37]} Bd7 {[%emt 0:00:13]} 30. Rb7 {[%emt 0:01:52]} Kd8 {[%emt 0:00:44]} 31. f3 {[%emt 0:07:36]} Kc8 {[%emt 0:00:20]} 32. Rb6 {[%emt 0:00:09]} Kc7 {[%emt 0:00:31] White must now prevent ...Rc3.} 33. Kf2 {[%emt 0:01:16]} f5 {[%emt 0:01:39] ...f4 is the strong threat.} 34. Ra6 {[%emt 0:08:50]} Rxb4 {[%emt 0:00:08]} 35. Ra7+ {[%emt 0:00:38]} Kc6 {[%emt 0:00:10]} 36. Kg3 {[%emt 0:01:05]} d5 {[%emt 0:01:23]} 37. Ra6+ {[%emt 0:00:02]} Kc7 {[%emt 0:00:05]} 38. Bf4+ {[%emt 0:01:43]} Kb7 {[%emt 0:00:40]} 39. Rd6 {[%emt 0:00:12][%csl LRd5,LRd7]} Bc6 {[%emt 0:00:17]} 40. Re6 {[%emt 0:00:00]} d4 {[%emt 0:00:00]} 41. Rd6 {[%emt 0:07:19]} Kb6 {[%emt 0:04:28]} 42. Rd8 {[%emt 0:02:43]} (42. Bg5 $11 {keeps the balance.}) 42... Ra4 {[%emt 0:03:03]} 43. Be5 {[%emt 0:02:44]} Kc5 {[%emt 0:00:37]} 44. h4 {[%emt 0:01:29]} Bb5 {[%emt 0:13:53]} 45. Kf4 $1 {[%emt 0:03:06]} d3+ {[%emt 0:00:10]} 46. Kg5 $1 {[%emt 0:00:32]} Ra2 {[%emt 0:01:56]} 47. g4 {[%emt 0:03:26]} ({White should play} 47. g3 $15) 47... fxg4 {[%emt 0:00:18]} 48. fxg4 {[%emt 0:00:04]} Rg2 {[%emt 0:00:27]} 49. h5 {[%emt 0:03:34]} gxh5 {[%emt 0:00:48]} 50. Kxh5 {[%emt 0:00:05]} Bc4 {[%emt 0:00:33]} 51. g5 $2 {[%emt 0:05:22]} (51. Bd4+ $19 Kc6 52. Be3) 51... d2 {[%emt 0:01:45] Black mates.} 52. Bd6+ {[%emt 0:02:23]} Kc6 {[%emt 0:01:19]} 53. Bb4 {[%emt 0:03:26] [#]} d1=Q+ $1 {[%emt 0:00:40][%mdl 512]} 54. Rxd1 {[%emt 0:00:00] Weighted Error Value: White=0.28 (precise) /Black=0.05 (flawless)} 0-1

[Event "European Women-ch 2023"]
[Site "Petrovac"]
[Date "2023.03.21"]
[Round "4.7"]
[White "Pavlidou, Ekaterini"]
[Black "Pirvulescu, Ekaterina"]
[Result "0-1"]
[ECO "D02"]
[WhiteElo "2178"]
[BlackElo "2032"]
[Annotator "TA"]
[PlyCount "74"]
[EventDate "2023.03.15"]
[EventType "swiss"]
[EventCountry "MNE"]
[SourceTitle "playchess.com"]
[Source "ChessBase"]
[SourceQuality "1"]
[TimeControl "40/5400+30:1800+30"]

{[%evp 16,74,-8,-17,-8,-5,0,-20,4,-21,-18,-20,-18,-52,-56,-62,-60,-68,-60,-75,-49,-91,-70,-181,-81,-72,0,-147,-104,-134,-128,-236,-188,-285,-264,-229,-236,-360,-343,-346,-300,-336,-286,-351,-351,-328,-354,-341,-354,-779,-779,-776,-765,-742,-736,-722,-720,-686,-678,-864,-854]} 1. d4 {[%emt 0:00:18]} d5 {[%emt 0:00:09]} 2. Bf4 {[%emt 0:00:11]} Nf6 {[%emt 0:00:52]} 3. e3 {[%emt 0:00:10]} c5 {[%emt 0:00:24]} 4. Nf3 {[%emt 0:02:22]} Nc6 {[%emt 0:00:23]} 5. c3 {[%emt 0:02:56]} Qb6 {[%emt 0:01:41]} 6. Qb3 {[%emt 0:07:23]} c4 {[%emt 0:00:20]} 7. Qc2 {[%emt 0:00:38]} Bf5 {[%emt 0:01:00]} 8. Qc1 {[%emt 0:00:12]} h6 {[%emt 0:04:02]} 9. h3 {[%emt 0:00:49] White is weak on the light squares} e6 {[%emt 0:00:47] D02: 1 d4 d5 2 Nf3 sidelines, including 2...Nf6 3 g3 and 2...Nf6 3 Bf4.} 10. Nbd2 {[%emt 0:00:26]} Be7 {[%emt 0:03:38]} 11. Be2 {[%emt 0:00:17]} Qd8 {[%emt 0:05:54] The position is equal.} 12. Ne5 {[%emt 0:03:45]} Nxe5 {[%emt 0:02:47]} 13. Bxe5 {[%emt 0:02:51]} O-O {[%emt 0:00:57]} 14. g4 {[%emt 0:05:50]} Bh7 {[%emt 0:07:17] [#]} 15. Bxf6 $146 {[%emt 0:04:18]} ({Predecessor:} 15. h4 Nd7 16. Bg3 b5 17. a3 a5 18. g5 hxg5 19. hxg5 Bxg5 20. Nf3 Bh6 21. Qd2 {0-1 Purtseladze,M (2274)-Migot,T (2353) Titled Tuesday intern op 16th Mar blitz 2021 (6)}) 15... Bxf6 {[%emt 0:00:08]} 16. f4 {[%emt 0:00:15]} Bh4+ {[%emt 0:01:26]} 17. Kf1 {[%emt 0:00:06]} b5 {[%emt 0:06:59][%cal Bb7b5,Bb5b4][%mdl 32]} 18. a4 {[%emt 0:06:14]} a6 {[%emt 0:08:32]} 19. Bf3 {[%emt 0:04:15]} (19. Bd1 $15) 19... Bd3+ {[%emt 0:02:48]} (19... g5 $19 {Strongly threatening ...gxf4.} 20. Kg1 Qd6) 20. Be2 $17 {[%emt 0:03:41]} Bh7 {[%emt 0:00:20] Black has more active pieces.} (20... Bg6 $142) 21. Bf3 $1 {[%emt 0:02:26] Black continues to play with concentration.} b4 {[%emt 0:01:43]} 22. Kg2 {[%emt 0:10:20]} Rb8 $36 {[%emt 0:01:42][%cal Ba8b8,Bb8b6,Bb6b2][%mdl 2080] Black has strong initiative.} 23. Ra2 {[%emt 0:02:49]} (23. Bd1 $17 {was necessary.}) 23... Qd6 {[%emt 0:03:03] aiming for ...g5.} 24. Qg1 {[%emt 0:09:02]} (24. Be2 $142) 24... bxc3 {[%emt 0:02:24]} 25. bxc3 {[%emt 0:00:07]} Rb6 {[%emt 0:01:57]} 26. Qh2 {[%emt 0:03:39]} (26. Be2 $142) 26... Rfb8 $19 {[%emt 0:02:26] Hoping for ...Bb1.} 27. f5 {[%emt 0:04:06]} Qxh2+ {[%emt 0:13:53]} (27... exf5 $2 28. Qxd6 Rxd6 29. gxf5 $19) 28. Kxh2 {[%emt 0:01:18]} Rb2 {[%emt 0:00:11]} ({Weaker is} 28... exf5 29. Bxd5 Rd6 30. Bxc4 $11) 29. Rha1 {[%emt 0:00:15]} Bg5 {[%emt 0:06:01]} ({Worse is} 29... exf5 30. Bxd5 Bg5 31. Kg3 $11) 30. Kh1 {[%emt 0:02:26]} Bxe3 {[%emt 0:00:36]} ({And not} 30... exf5 31. Bxd5 Rxa2 32. Rxa2 $11) 31. Rxb2 {[%emt 0:00:24]} Rxb2 {[%emt 0:00:08]} 32. Rb1 $2 {[%emt 0:00:33] [#]} (32. Nf1 Bf2 33. Rd1) 32... Rxb1+ {[%emt 0:00:22] Black is clearly winning.} (32... Rxd2 $2 33. Rb8#) 33. Nxb1 {[%emt 0:00:06]} Bc1 {[%emt 0:00:15][%cal Be3c1,Bc1g5,Bg5d8][%mdl 32]} 34. a5 {[%emt 0:01:56]} g6 {[%emt 0:07:58]} 35. fxe6 {[%emt 0:02:33]} fxe6 {[%emt 0:00:34] [#] White must now prevent ...g5.} 36. g5 {[%emt 0:00:05]} Bxg5 {[%emt 0:00:55] And now ...Bc1 would win.} 37. Na3 {[%emt 0:03:41]} Bd8 {[%emt 0:00:20] Weighted Error Value: White=0.49/Black=0.20 (precise)} 0-1